fUST/lending_fUST_20251203
["ID","MTS","AMOUNT","RATE_DAILY","PERIOD"]
[395751701,1764720654082,-500.0,0.00012677,2]
[395751703,1764720654092,-3614.16,0.00012677,2]
[395751705,1764720654102,-500.0,0.00012677,2]
[395751707,1764720654112,-1537.21,0.00012677,2]
[395751709,1764720654122,-500.0,0.00012677,2]
[395751711,1764720654135,-1139.09,0.00012677,2]
[395751713,1764720654145,-153.15333092,0.00012677,2]
[395751715,1764720654155,-751.51,0.00012677,2]
[395751717,1764720654164,-1089.7,0.00012677,2]
[395751719,1764720654175,-618.3,0.00012677,2]
[395751721,1764720654185,-500.0,0.00012677,2]
[395751723,1764720654195,-10044.44,0.00012677,2]
[395751725,1764720654205,-633.2,0.00012677,2]
[395751727,1764720654215,-646.12,0.00012677,2]
[395751729,1764720654232,-623.17,0.00012677,2]
[395751731,1764720654246,-1340.19,0.00012677,2]
[395751733,1764720654255,-1721.06,0.00012677,2]
[395751735,1764720654265,-500.0,0.00012677,2]
[395751737,1764720654275,-252.00941987,0.00012677,2]
[395751739,1764720654284,-1687.99,0.00012677,2]
[395751742,1764720654300,-500.0,0.00012677,2]
[395751744,1764720654309,-633.36,0.00012677,2]
[395751746,1764720654319,-2133.42,0.00012677,2]
[395751748,1764720654328,-835.79,0.00012677,2]
[395751750,1764720654338,-500.0,0.00012677,2]
[395751752,1764720654347,-1150.06,0.00012677,2]
[395751754,1764720654357,-607.96757915,0.00012677,2]
[395751756,1764720654367,-716.76,0.00012677,2]
[395751758,1764720654378,-500.0,0.00012677,2]
[395751760,1764720654387,-500.0,0.00012677,2]
[395751762,1764720654401,-513.58,0.00012677,2]
[395751764,1764720654412,-500.0,0.00012677,2]
[395751766,1764720654425,-3924.31,0.00012677,2]
[395751768,1764720654435,-500.0,0.00012677,2]
[395751770,1764720654446,-500.0,0.00012677,2]
[395751772,1764720654456,-538.16,0.00012677,2]
[395751774,1764720654465,-500.0,0.00012677,2]
[395751776,1764720654476,-500.0,0.00012677,2]
[395751778,1764720654486,-500.0,0.00012677,2]
[395751780,1764720654496,-1330.31,0.00012677,2]
[395751782,1764720654505,-4449.25,0.00012677,2]
[395751784,1764720654515,-1578.01,0.00012677,2]
[395751786,1764720654525,-587.8,0.00012677,2]
[395751788,1764720654535,-500.0,0.00012677,2]
[395751790,1764720654544,-1029.45,0.00012677,2]
[395751792,1764720654554,-500.0,0.00012677,2]
[395751794,1764720654564,-5537.05,0.00012677,2]
[395751796,1764720654574,-1253.26,0.00012677,2]
[395751798,1764720654583,-500.0,0.00012677,2]
[395751800,1764720654593,-550.3,0.00012677,2]
[395751802,1764720654603,-500.0,0.00012677,2]
[395751804,1764720654613,-3748.47,0.00012677,2]
[395751806,1764720654623,-500.0,0.00012677,2]
[395751809,1764720654633,-500.0,0.00012677,2]
[395751811,1764720654642,-500.0,0.00012677,2]
[395751813,1764720654652,-922.74,0.00012677,2]
[395751814,1764720654662,-500.0,0.00012677,2]
[395751817,1764720654672,-1274.21,0.00012677,2]
[395751819,1764720654682,-2304.86,0.00012677,2]
[395751821,1764720654691,-4841.43,0.00012677,2]
[395751822,1764720654701,-500.0,0.00012677,2]
[395751825,1764720654711,-1648.98,0.00012677,2]
[395751826,1764720654721,-547.39,0.00012677,2]
[395751828,1764720654731,-500.0,0.00012677,2]
[395751830,1764720654740,-203.35277891,0.00012677,2]
[395751832,1764720654750,-1511.05,0.00012677,2]
[395751834,1764720654759,-820.17,0.00012677,2]
[395751836,1764720654769,-500.0,0.00012677,2]
[395751838,1764720654779,-500.0,0.00012677,2]
[395751840,1764720654789,-1051.62,0.00012677,2]
[395751842,1764720654798,-500.0,0.00012677,2]
[395751844,1764720654808,-1151.41,0.00012677,2]
[395751846,1764720654818,-500.0,0.00012677,2]
[395751848,1764720654827,-584.09,0.00012677,2]
[395751850,1764720654836,-500.0,0.00012677,2]
[395751852,1764720654846,-2059.31,0.00012677,2]
[395751854,1764720654855,-500.0,0.00012677,2]
[395751856,1764720654865,-1897.89,0.00012677,2]
[395751858,1764720654874,-573.64,0.00012677,2]
[395751861,1764720654885,-500.0,0.00012677,2]
[395751862,1764720654894,-726.19,0.00012677,2]
[395751864,1764720654905,-500.0,0.00012677,2]
[395751866,1764720654917,-500.0,0.00012677,2]
[395751869,1764720654926,-991.98,0.00012677,2]
[395751870,1764720654936,-500.0,0.00012677,2]
[395751872,1764720654945,-500.0,0.00012677,2]
[395751874,1764720654954,-656.47,0.00012677,2]
[395751876,1764720654963,-500.0,0.00012677,2]
[395751878,1764720654972,-1432.21,0.00012677,2]
[395751880,1764720654980,-500.0,0.00012677,2]
[395751882,1764720654991,-1523.26,0.00012677,2]
[395751884,1764720655000,-668.91,0.00012677,2]
[395751886,1764720655009,-5584.11,0.00012677,2]
[395751888,1764720655019,-1123.33,0.00012677,2]
[395751890,1764720655028,-498.0,0.00012677,2]
[395751892,1764720655039,-500.0,0.00012677,2]
[395751894,1764720655048,-500.0,0.00012677,2]
[395751896,1764720655059,-541.35,0.00012677,2]
[395751898,1764720655068,-545.34,0.00012677,2]
[395751900,1764720655078,-500.0,0.00012677,2]
[395751902,1764720655087,-500.0,0.00012677,2]
[395751904,1764720655096,-1128.98,0.00012677,2]
[395751906,1764720655105,-500.0,0.00012677,2]
[395751908,1764720655115,-577.61,0.00012677,2]
[395751910,1764720655124,-1348.79,0.00012677,2]
[395751912,1764720655135,-4500.02,0.00012677,2]
[395751914,1764720655144,-500.0,0.00012677,2]
[395751916,1764720655153,-500.0,0.00012677,2]
[395751918,1764720655162,-1530.49,0.00012677,2]
[395751920,1764720655171,-500.0,0.00012677,2]
[395751922,1764720655180,-500.0,0.00012677,2]
[395751924,1764720655190,-500.0,0.00012677,2]
[395751926,1764720655199,-500.0,0.00012677,2]
[395751928,1764720655209,-1174.79,0.00012677,2]
[395751930,1764720655219,-3422.84,0.00012677,2]
[395751932,1764720655228,-500.0,0.00012677,2]
[395751934,1764720655238,-500.0,0.00012677,2]
[395751936,1764720655247,-500.0,0.00012677,2]
[395751938,1764720655257,-500.0,0.00012677,2]
[395751940,1764720655266,-475.40764716,0.00012677,2]
[395751942,1764720655275,-500.0,0.00012678,2]
[395751944,1764720655284,-500.0,0.00012678,2]
[395751946,1764720655293,-500.0,0.00012678,2]
[395751948,1764720655303,-500.0,0.00012678,2]
[395751950,1764720655312,-500.0,0.00012678,2]
[395751952,1764720655322,-500.0,0.00012678,2]
[395751954,1764720655331,-500.0,0.00012678,2]
[395751956,1764720655341,-588.77626591,0.00012678,2]
[395751958,1764720655350,-822.31,0.00012678,2]
[395751960,1764720655359,-594.8,0.00012678,2]
[395751962,1764720655369,-294.71917403,0.00012678,2]
[395751964,1764720655378,-819.12,0.00012678,2]
[395751966,1764720655388,-500.0,0.00012678,2]
[395751968,1764720655403,-500.0,0.00012678,2]
[395751970,1764720655413,-500.0,0.00012678,2]
[395751972,1764720655423,-530.47,0.00012678,2]
[395751974,1764720655435,-500.0,0.00012678,2]
[395751976,1764720655444,-743.15,0.00012678,2]
[395751978,1764720655454,-500.0,0.00012678,2]
[395751980,1764720655463,-500.0,0.00012678,2]
[395751982,1764720655474,-500.0,0.00012678,2]
[395751984,1764720655484,-500.0,0.00012678,2]
[395751986,1764720655494,-523.92127251,0.00012678,2]
[395751988,1764720655504,-500.0,0.00012678,2]
[395751990,1764720655513,-500.0,0.00012678,2]
[395751992,1764720655523,-500.0,0.00012678,2]
[395751994,1764720655532,-500.0,0.00012678,2]
[395751996,1764720655542,-750.81,0.00012678,2]
[395751998,1764720655552,-500.0,0.00012678,2]
[395752000,1764720655561,-500.0,0.00012678,2]
[395752002,1764720655571,-500.0,0.00012678,2]
[395752004,1764720655580,-500.0,0.00012678,2]
[395752007,1764720655590,-655.86,0.00012678,2]
[395752009,1764720655599,-500.0,0.00012678,2]
[395752010,1764720655608,-500.0,0.00012678,2]
[395752012,1764720655618,-500.0,0.00012678,2]
[395752014,1764720655627,-500.0,0.00012678,2]
[395752016,1764720655637,-500.0,0.00012678,2]
[395752018,1764720655646,-1663.68,0.00012678,2]
[395752020,1764720655655,-500.0,0.00012678,2]
[395752022,1764720655664,-721.65,0.00012678,2]
[395752024,1764720655674,-698.39,0.00012678,2]
[395752026,1764720655683,-500.0,0.00012678,2]
[395752028,1764720655692,-500.0,0.00012678,2]
[395752030,1764720655701,-500.0,0.00012678,2]
[395752032,1764720655711,-500.0,0.00012678,2]
[395752034,1764720655720,-500.0,0.00012678,2]
[395752036,1764720655729,-506.93,0.00012678,2]
[395752038,1764720655738,-500.0,0.00012678,2]
[395752040,1764720655747,-500.0,0.00012678,2]
[395752042,1764720655756,-500.0,0.00012678,2]
[395752044,1764720655765,-500.0,0.00012678,2]
[395752046,1764720655775,-680.98,0.00012678,2]
[395752048,1764720655784,-500.0,0.00012678,2]
[395752050,1764720655793,-508.69,0.00012678,2]
[395752052,1764720655802,-1252.73,0.00012678,2]
[395752053,1764720655811,-581.87,0.00012678,2]
[395752055,1764720655821,-500.0,0.00012678,2]
[395752057,1764720655830,-500.0,0.00012678,2]
[395752059,1764720655840,-1098.72,0.00012678,2]
[395752062,1764720655850,-500.0,0.00012678,2]
[395752063,1764720655859,-500.0,0.00012678,2]
[395752065,1764720655868,-500.0,0.00012678,2]
[395752068,1764720655878,-500.0,0.00012678,2]
[395752069,1764720655887,-841.32,0.00012678,2]
[395752072,1764720655897,-500.0,0.00012678,2]
[395752073,1764720655906,-500.0,0.00012678,2]
[395752075,1764720655915,-500.0,0.00012678,2]
[395752077,1764720655926,-500.0,0.00012678,2]
[395752079,1764720655936,-500.0,0.00012678,2]
[395752081,1764720655946,-500.0,0.00012678,2]
[395752084,1764720655955,-500.0,0.00012678,2]
[395752085,1764720655964,-500.0,0.00012678,2]
[395752087,1764720655973,-500.0,0.00012678,2]
[395752089,1764720655983,-500.0,0.00012678,2]
[395752091,1764720655992,-642.14200331,0.00012678,2]
[395752093,1764720656001,-500.0,0.00012678,2]
[395752095,1764720656011,-500.0,0.00012678,2]
[395752096,1764720656020,-500.0,0.00012678,2]
[395752097,1764720656029,-531.9,0.00012678,2]
[395752098,1764720656040,-500.0,0.00012678,2]
[395752112,1764720656212,-500.0,0.00012678,2]
[395752114,1764720656222,-500.0,0.00012678,2]
[395752116,1764720656232,-500.0,0.00012678,2]
[395752118,1764720656241,-500.0,0.00012678,2]
[395752120,1764720656251,-568.73,0.00012678,2]
[395752122,1764720656261,-500.0,0.00012678,2]
[395752124,1764720656270,-500.0,0.00012678,2]
[395752126,1764720656279,-500.0,0.00012678,2]
[395752128,1764720656289,-500.0,0.00012678,2]
[395752130,1764720656298,-500.0,0.00012678,2]
[395752132,1764720656308,-603.19,0.00012678,2]
[395752135,1764720656318,-471.00113019,0.00012678,2]
[395752136,1764720656328,-500.0,0.00012678,2]
[395752139,1764720656338,-500.0,0.00012678,2]
[395752141,1764720656347,-500.0,0.00012678,2]
[395752142,1764720656357,-500.0,0.00012678,2]
[395752145,1764720656367,-500.0,0.00012678,2]
[395752147,1764720656376,-784.39,0.00012678,2]
[395752149,1764720656386,-500.0,0.00012678,2]
[395752151,1764720656400,-500.0,0.00012678,2]
[395752153,1764720656409,-500.0,0.00012678,2]
[395752154,1764720656418,-500.0,0.00012678,2]
[395752157,1764720656429,-500.0,0.00012678,2]
[395752159,1764720656440,-1678.87,0.00012678,2]
[395752161,1764720656450,-1000.0,0.00012678,2]
[395752163,1764720656460,-500.0,0.00012678,2]
[395752165,1764720656469,-500.0,0.00012678,2]
[395752167,1764720656479,-500.0,0.00012678,2]
[395752169,1764720656489,-685.74,0.00012678,2]
[395752171,1764720656498,-500.0,0.00012678,2]
[395752173,1764720656507,-500.0,0.00012678,2]
[395752175,1764720656516,-500.0,0.00012678,2]
[395752177,1764720656526,-500.0,0.00012678,2]
[395752179,1764720656534,-500.0,0.00012678,2]
[395752181,1764720656544,-500.0,0.00012678,2]
[395752183,1764720656553,-500.0,0.00012678,2]
[395752185,1764720656562,-500.0,0.00012678,2]
[395752187,1764720656571,-500.0,0.00012678,2]
[395752189,1764720656580,-1142.5,0.00012678,2]
[395752191,1764720656589,-500.0,0.00012678,2]
[395752193,1764720656599,-500.0,0.00012678,2]
[395752195,1764720656608,-777.29,0.00012678,2]
[395752197,1764720656617,-500.0,0.00012678,2]
[395752199,1764720656626,-500.0,0.00012678,2]
[395752201,1764720656636,-500.0,0.00012678,2]
[395752202,1764720656647,-500.0,0.00012678,2]
[395752204,1764720656657,-500.0,0.00012678,2]
[395752207,1764720656666,-500.0,0.00012678,2]
[395752208,1764720656677,-500.0,0.00012678,2]
[395752210,1764720656686,-500.0,0.00012678,2]
[395752212,1764720656695,-500.0,0.00012678,2]
[395752214,1764720656705,-526.85,0.00012678,2]
[395752216,1764720656714,-899.47,0.00012678,2]
[395752218,1764720656723,-500.0,0.00012678,2]
[395752220,1764720656733,-669.85,0.00012678,2]
[395752222,1764720656742,-500.0,0.00012678,2]
[395752224,1764720656751,-1041.51,0.00012678,2]
[395752226,1764720656761,-500.0,0.00012678,2]
[395752228,1764720656771,-500.0,0.00012678,2]
[395752231,1764720656782,-500.0,0.00012678,2]
[395752233,1764720656791,-500.0,0.00012678,2]
[395752235,1764720656800,-500.0,0.00012678,2]
[395752237,1764720656810,-500.0,0.00012678,2]
[395752239,1764720656819,-932.7,0.00012678,2]
[395752241,1764720656829,-500.0,0.00012678,2]
[395752243,1764720656838,-500.0,0.00012678,2]
[395752245,1764720656847,-500.0,0.00012678,2]
[395752247,1764720656856,-500.0,0.00012678,2]
[395752249,1764720656866,-1319.62,0.00012678,2]
[395752251,1764720656875,-500.0,0.00012678,2]
[395752253,1764720656884,-500.0,0.00012678,2]
[395752255,1764720656893,-562.03,0.00012678,2]
[395752257,1764720656902,-500.0,0.00012678,2]
[395752259,1764720656911,-524.9,0.00012678,2]
[395752261,1764720656920,-500.0,0.00012678,2]
[395752263,1764720656929,-500.0,0.00012678,2]
[395752265,1764720656938,-500.0,0.00012678,2]
[395752267,1764720656947,-500.0,0.00012678,2]
[395752269,1764720656956,-500.0,0.00012678,2]
[395752271,1764720656966,-500.0,0.00012678,2]
[395752273,1764720656976,-868.72,0.00012678,2]
[395752275,1764720656985,-500.0,0.00012678,2]
[395752277,1764720656994,-500.0,0.00012678,2]
[395752279,1764720657004,-818.09,0.00012678,2]
[395752281,1764720657014,-337.54704579,0.00012678,2]
[395752282,1764720657024,-500.0,0.00012678,2]
[395752284,1764720657033,-500.0,0.00012678,2]
[395752287,1764720657042,-821.87,0.00012678,2]
[395752288,1764720657052,-500.0,0.00012678,2]
[395752291,1764720657062,-500.0,0.00012678,2]
[395752292,1764720657073,-500.0,0.00012678,2]
[395752295,1764720657083,-500.0,0.00012678,2]
[395752297,1764720657093,-1093.15,0.00012678,2]
[395752299,1764720657102,-500.0,0.00012678,2]
[395752300,1764720657111,-500.0,0.00012678,2]
[395752302,1764720657120,-500.0,0.00012678,2]
[395752305,1764720657130,-500.0,0.00012678,2]
[395752307,1764720657139,-500.0,0.00012678,2]
[395752308,1764720657148,-500.0,0.00012678,2]
[395752311,1764720657157,-500.0,0.00012678,2]
[395752313,1764720657166,-500.0,0.00012678,2]
[395752315,1764720657175,-500.0,0.00012678,2]
[395752317,1764720657186,-612.48,0.00012678,2]
[395752319,1764720657196,-249.226031,0.00012678,2]
[395752321,1764720657206,-500.0,0.00012678,2]
[395752322,1764720657217,-500.0,0.00012678,2]
[395752324,1764720657226,-500.0,0.00012678,2]
[395752326,1764720657236,-500.0,0.00012678,2]
[395752328,1764720657245,-544.36,0.00012678,2]
[395752330,1764720657257,-539.64,0.00012678,2]
[395752332,1764720657268,-500.0,0.00012678,2]
[395752335,1764720657278,-500.0,0.00012678,2]
[395752337,1764720657289,-500.0,0.00012678,2]
[395752339,1764720657300,-545.16,0.00012678,2]
[395752340,1764720657309,-500.0,0.00012678,2]
[395752342,1764720657320,-500.0,0.00012678,2]
[395752344,1764720657330,-500.0,0.00012678,2]
[395752347,1764720657341,-866.68,0.00012678,2]
[395752348,1764720657351,-500.0,0.00012678,2]
[395752350,1764720657361,-500.0,0.00012678,2]
[395752352,1764720657371,-500.0,0.00012678,2]
[395752355,1764720657381,-500.0,0.00012678,2]
[395752357,1764720657390,-500.0,0.00012678,2]
[395752358,1764720657404,-500.0,0.00012678,2]
[395752360,1764720657415,-500.0,0.00012678,2]
[395752363,1764720657424,-500.0,0.00012678,2]
[395752364,1764720657433,-500.0,0.00012678,2]
[395752367,1764720657443,-500.0,0.00012678,2]
[395752368,1764720657453,-405.00576262,0.00012678,2]
[395752370,1764720657464,-500.0,0.00012678,2]
[395752372,1764720657474,-838.06,0.00012678,2]
[395752374,1764720657484,-500.0,0.00012678,2]
[395752376,1764720657494,-500.0,0.00012678,2]
[395752378,1764720657503,-455.61135957,0.00012678,2]
[395752380,1764720657513,-901.82,0.00012678,2]
[395752382,1764720657522,-500.0,0.00012678,2]
[395752385,1764720657531,-515.40911706,0.00012678,2]
[395752386,1764720657540,-500.0,0.00012678,2]
[395752389,1764720657550,-500.0,0.00012678,2]
[395752390,1764720657559,-654.52,0.00012678,2]
[395752392,1764720657569,-980.87,0.00012678,2]
[395752395,1764720657579,-500.0,0.00012678,2]
[395752396,1764720657590,-500.0,0.00012679,2]
[395752398,1764720657600,-323.44348885,0.00012679,2]
[395752400,1764720657611,-500.0,0.00012679,2]
[395752402,1764720657621,-500.0,0.00012679,2]
[395752404,1764720657631,-500.0,0.00012679,2]
[395752406,1764720657642,-500.0,0.00012679,2]
[395752409,1764720657651,-690.47,0.00012679,2]
[395752411,1764720657661,-604.71641005,0.00012679,2]
[395752413,1764720657671,-500.0,0.00012679,2]
[395752415,1764720657680,-832.21,0.00012679,2]
[395752417,1764720657689,-500.0,0.00012679,2]
[395752419,1764720657699,-500.0,0.00012679,2]
[395752421,1764720657708,-634.16,0.00012679,2]
[395752423,1764720657717,-500.0,0.00012679,2]
[395752425,1764720657726,-1331.94,0.00012679,2]
[395752427,1764720657735,-500.0,0.00012679,2]
[395752429,1764720657746,-500.0,0.00012679,2]
[395752431,1764720657755,-750.15,0.00012679,2]
[395752433,1764720657764,-500.0,0.00012679,2]
[395752434,1764720657774,-356.89625916,0.00012679,2]
[395752436,1764720657783,-500.0,0.00012679,2]
[395752438,1764720657792,-1327.44,0.00012679,2]
[395752441,1764720657802,-500.0,0.00012679,2]
[395752443,1764720657812,-500.0,0.00012679,2]
[395752445,1764720657822,-500.0,0.00012679,2]
[395752447,1764720657831,-500.0,0.00012679,2]
[395752448,1764720657841,-500.0,0.00012679,2]
[395752450,1764720657851,-1312.65,0.00012679,2]
[395752452,1764720657860,-837.13,0.00012679,2]
[395752455,1764720657869,-752.22,0.00012679,2]
[395752456,1764720657879,-2183.35,0.00012679,2]
[395752458,1764720657888,-500.0,0.00012679,2]
[395752460,1764720657897,-151.0,0.000127,2]
[395752463,1764720657906,-151.0,0.000127,2]
[395752465,1764720657915,-151.0,0.000127,2]
[395752467,1764720657925,-151.0,0.000127,2]
[395752468,1764720657935,-267.80219672,0.00012715,2]
[395752471,1764720657946,-346.93136212,0.00012749,2]
[395752473,1764720657955,-151.0,0.000128,2]
[395752475,1764720657964,-151.0,0.000128,2]
[395752477,1764720657973,-151.0,0.000128,2]
[395752479,1764720657982,-587.0,0.00012808,2]
[395752481,1764720657993,-151.0,0.000129,2]
[395752483,1764720658002,-151.0,0.000129,2]
[395752485,1764720658011,-151.0,0.000129,2]
[395752487,1764720658020,-500.0,0.00012951,2]
[395752489,1764720658029,-879.45,0.00012951,2]
[395752491,1764720658038,-500.0,0.00012951,2]
[395752493,1764720658047,-500.0,0.00012951,2]
[395752495,1764720658057,-762.74,0.00012951,2]
[395752497,1764720658066,-500.0,0.00012951,2]
[395752499,1764720658075,-500.0,0.00012951,2]
[395752501,1764720658084,-732.12,0.00012951,2]
[395752503,1764720658093,-618.06,0.00012951,2]
[395752505,1764720658103,-500.0,0.00012951,2]
[395752507,1764720658112,-500.0,0.00012951,2]
[395752509,1764720658121,-500.0,0.00012951,2]
[395752511,1764720658131,-500.0,0.00012951,2]
[395752513,1764720658140,-795.15,0.00012951,2]
[395752515,1764720658149,-500.0,0.00012951,2]
[395752517,1764720658158,-527.01,0.00012951,2]
[395752519,1764720658167,-500.0,0.00012951,2]
[395752521,1764720658176,-500.0,0.00012951,2]
[395752523,1764720658185,-500.0,0.00012951,2]
[395752525,1764720658195,-500.0,0.00012951,2]
[395752527,1764720658204,-500.0,0.00012951,2]
[395752529,1764720658215,-500.0,0.00012951,2]
[395752531,1764720658224,-803.99,0.00012951,2]
[395752533,1764720658233,-1870.84,0.00012951,2]
[395752535,1764720658243,-500.0,0.00012951,2]
[395752537,1764720658252,-500.0,0.00012951,2]
[395752539,1764720658262,-500.0,0.00012951,2]
[395752541,1764720658271,-500.0,0.00012951,2]
[395752543,1764720658280,-500.0,0.00012951,2]
[395752545,1764720658290,-1604.91,0.00012951,2]
[395752547,1764720658299,-564.82,0.00012951,2]
[395752549,1764720658308,-500.0,0.00012951,2]
[395752551,1764720658317,-500.0,0.00012951,2]
[395752553,1764720658327,-500.0,0.00012951,2]
[395752555,1764720658336,-500.0,0.00012951,2]
[395752557,1764720658345,-526.87,0.00012951,2]
[395752559,1764720658354,-707.26,0.00012951,2]
[395752561,1764720658366,-500.0,0.00012951,2]
[395752563,1764720658382,-500.0,0.00012951,2]
[395752565,1764720658401,-719.68,0.00012951,2]
[395752567,1764720658411,-555.14,0.00012951,2]
[395752569,1764720658420,-694.73,0.00012951,2]
[395752571,1764720658429,-500.0,0.00012951,2]
[395752573,1764720658438,-594.76,0.00012951,2]
[395752575,1764720658448,-585.42562328,0.00012951,2]
[395752577,1764720658457,-500.0,0.00012951,2]
[395752579,1764720658466,-500.0,0.00012951,2]
[395752581,1764720658476,-500.0,0.00012951,2]
[395752583,1764720658486,-500.0,0.00012951,2]
[395752585,1764720658497,-668.18,0.00012951,2]
[395752587,1764720658506,-500.0,0.00012951,2]
[395752589,1764720658516,-500.0,0.00012951,2]
[395752591,1764720658526,-500.0,0.00012951,2]
[395752593,1764720658535,-500.0,0.00012951,2]
[395752595,1764720658544,-500.0,0.00012951,2]
[395752597,1764720658554,-500.0,0.00012951,2]
[395752599,1764720658563,-500.0,0.00012951,2]
[395752601,1764720658573,-500.0,0.00012951,2]
[395752620,1764720658728,-500.0,0.00012951,2]
[395752622,1764720658741,-1983.31,0.00012951,2]
[395752624,1764720658750,-500.0,0.00012951,2]
[395752626,1764720658760,-500.0,0.00012951,2]
[395752628,1764720658769,-729.77,0.00012951,2]
[395752630,1764720658779,-732.84,0.00012951,2]
[395752632,1764720658789,-500.0,0.00012951,2]
[395752634,1764720658798,-500.0,0.00012951,2]
[395752636,1764720658808,-500.0,0.00012951,2]
[395752638,1764720658818,-500.0,0.00012951,2]
[395752640,1764720658828,-500.0,0.00012951,2]
[395752642,1764720658838,-1446.79,0.00012951,2]
[395752644,1764720658847,-1364.23,0.00012951,2]
[395752646,1764720658856,-500.0,0.00012951,2]
[395752648,1764720658865,-632.29,0.00012951,2]
[395752650,1764720658874,-876.59,0.00012951,2]
[395752652,1764720658883,-614.53954354,0.00012951,2]
[395752654,1764720658892,-500.0,0.00012951,2]
[395752656,1764720658902,-828.13,0.00012951,2]
[395752658,1764720658911,-500.0,0.00012951,2]
[395752660,1764720658920,-1186.27,0.00012951,2]
[395752661,1764720658930,-500.0,0.00012951,2]
[395752664,1764720658940,-1070.09,0.00012951,2]
[395752665,1764720658949,-500.0,0.00012951,2]
[395752668,1764720658959,-715.6,0.00012951,2]
[395752669,1764720658968,-1036.08,0.00012951,2]
[395752671,1764720658978,-500.0,0.00012951,2]
[395752673,1764720658987,-500.0,0.00012951,2]
[395752675,1764720658998,-829.96,0.00012951,2]
[395752677,1764720659007,-500.0,0.00012951,2]
[395752679,1764720659017,-500.0,0.00012951,2]
[395752681,1764720659026,-500.0,0.00012951,2]
[395752683,1764720659035,-500.0,0.00012951,2]
[395752685,1764720659045,-500.0,0.00012951,2]
[395752687,1764720659054,-1234.66,0.00012951,2]
[395752689,1764720659063,-500.0,0.00012951,2]
[395752691,1764720659072,-500.0,0.00012951,2]
[395752693,1764720659082,-500.0,0.00012951,2]
[395752696,1764720659093,-965.42,0.00012951,2]
[395752698,1764720659103,-500.0,0.00012951,2]
[395752700,1764720659114,-500.0,0.00012951,2]
[395752702,1764720659123,-941.35,0.00012951,2]
[395752704,1764720659133,-500.0,0.00012951,2]
[395752706,1764720659142,-1272.68,0.00012951,2]
[395752708,1764720659151,-500.0,0.00012951,2]
[395752710,1764720659160,-500.0,0.00012951,2]
[395752712,1764720659169,-643.02,0.00012951,2]
[395752714,1764720659178,-500.0,0.00012951,2]
[395752716,1764720659187,-500.0,0.00012951,2]
[395752718,1764720659197,-500.0,0.00012951,2]
[395752720,1764720659206,-540.96,0.00012951,2]
[395752722,1764720659216,-500.0,0.00012951,2]
[395752724,1764720659225,-511.34,0.00012951,2]
[395752726,1764720659234,-500.0,0.00012951,2]